fUST/lending_fUST_20260601
["ID","MTS","AMOUNT","RATE_DAILY","PERIOD"]
[423577675,1780248639000,-500.0,0.00015272,2]
[423577680,1780248639000,-500.0,0.00015272,2]
[423577677,1780248639000,-500.0,0.00015272,2]
[423577688,1780248639000,-1448.47969,0.00015365,2]
[423577671,1780248639000,-500.0,0.00015271,2]
[423577690,1780248639000,-1352.39212201,0.000154,2]
[423577679,1780248639000,-591.15,0.00015272,2]
[423577686,1780248639000,-168.092411,0.00015277,2]
[423577684,1780248639000,-500.0,0.00015273,2]
[423577673,1780248639000,-500.0,0.00015272,2]
[423577682,1780248639000,-1129.09,0.00015272,2]
[423577694,1780248639000,-168.092411,0.000155,2]
[423577712,1780248639000,-501.41640972,0.00015545,2]
[423577706,1780248639000,-500.0,0.00015545,2]
[423577708,1780248639000,-502.96446805,0.00015545,2]
[423577704,1780248639000,-1028.27,0.00015545,2]
[423577710,1780248639000,-500.0,0.00015545,2]
[423577722,1780248639000,-500.0,0.00015545,2]
[423577698,1780248639000,-500.0,0.00015544,2]
[423577702,1780248639000,-500.0,0.00015545,2]
[423577714,1780248639000,-500.0,0.00015545,2]
[423577700,1780248639000,-559.57,0.00015545,2]
[423577720,1780248639000,-500.0,0.00015545,2]
[423577718,1780248639000,-500.0,0.00015545,2]
[423577716,1780248639000,-500.0,0.00015545,2]
[423577724,1780248639000,-500.0,0.00015545,2]
[423577665,1780248639000,-500.0,0.00015271,2]
[423577696,1780248639000,-1352.39212201,0.000155,2]
[423577651,1780248639000,-500.0,0.00015271,2]
[423577645,1780248639000,-500.0,0.00015271,2]
[423577661,1780248639000,-500.0,0.00015271,2]
[423577733,1780248639000,-500.0,0.00015546,2]
[423577607,1780248639000,-500.0,0.00014998,2]
[423577618,1780248639000,-189207.28857797,0.00015,2]
[423577613,1780248639000,-500.0,0.00014999,2]
[423577605,1780248639000,-591.15,0.00014998,2]
[423577611,1780248639000,-1129.09,0.00014998,2]
[423577616,1780248639000,-33417.55394588,0.00015,2]
[423577604,1780248639000,-500.0,0.00014998,2]
[423577609,1780248639000,-500.58205465,0.00014998,2]
[423577615,1780248639000,-381.94064303,0.00014999,2]
[423577620,1780248639000,-168.092411,0.00015054,2]
[423577622,1780248639000,-420.0,0.0001506,2]
[423577626,1780248639000,-240.42463964,0.000152,2]
[423577630,1780248639000,-315.58321054,0.00015243,2]
[423577643,1780248639000,-500.0,0.00015271,2]
[423577634,1780248639000,-559.57,0.00015271,2]
[423577632,1780248639000,-500.0,0.0001527,2]
[423577636,1780248639000,-438.24643045,0.00015271,2]
[423577628,1780248639000,-1352.39212201,0.000152,2]
[423577641,1780248639000,-500.0,0.00015271,2]
[423577637,1780248639000,-500.0,0.00015271,2]
[423577639,1780248639000,-1028.27,0.00015271,2]
[423577649,1780248639000,-500.0,0.00015271,2]
[423577653,1780248639000,-500.0,0.00015271,2]
[423577669,1780248639000,-500.0,0.00015271,2]
[423577655,1780248639000,-500.0,0.00015271,2]
[423577659,1780248639000,-500.0,0.00015271,2]
[423577657,1780248639000,-501.94278644,0.00015271,2]
[423577647,1780248639000,-500.0,0.00015271,2]
[423577663,1780248639000,-500.0,0.00015271,2]
[423577739,1780248639000,-500.0,0.00015546,2]
[423577624,1780248639000,-191.016808,0.00015068,2]
[423577726,1780248639000,-500.0,0.00015545,2]
[423577800,1780248639000,-559.57,0.00016093,2]
[423577812,1780248639000,-500.0,0.00016093,2]
[423577802,1780248639000,-1028.27,0.00016093,2]
[423577819,1780248639000,-591.15,0.00016094,2]
[423577804,1780248639000,-595.52,0.00016093,2]
[423577814,1780248639000,-500.0,0.00016094,2]
[423577815,1780248639000,-500.0,0.00016094,2]
[423577818,1780248639000,-500.0,0.00016094,2]
[423577808,1780248639000,-500.0,0.00016093,2]
[423577810,1780248639000,-500.0,0.00016093,2]
[423577806,1780248639000,-500.0,0.00016093,2]
[423577821,1780248639000,-500.0,0.00016094,2]
[423577825,1780248639000,-164.02470756,0.00016126,2]
[423577837,1780248639000,-151.5,0.00016127,2]
[423577842,1780248639000,-500.0,0.00016127,2]
[423577840,1780248639000,-215.04220334,0.00016127,2]
[423577844,1780248639000,-500.0,0.00016127,2]
[423577829,1780248639000,-151.5,0.00016127,2]
[423577828,1780248639000,-205.48399762,0.00016127,2]
[423577831,1780248639000,-151.5,0.00016127,2]
[423577848,1780248639000,-500.0,0.00016127,2]
[423577846,1780248639000,-500.0,0.00016127,2]
[423577833,1780248639000,-151.5,0.00016127,2]
[423577835,1780248639000,-292.52238375,0.00016127,2]
[423577850,1780248639000,-348.65914418,0.00016127,2]
[423577855,1780248639000,-500.0,0.00016127,2]
[423577853,1780248639000,-500.0,0.00016127,2]
[423577852,1780248639000,-151.5,0.00016127,2]
[423577735,1780248639000,-500.0,0.00015546,2]
[423577799,1780248639000,-500.0,0.00016092,2]
[423577797,1780248639000,-1448.47969,0.00016012,2]
[423577823,1780248639000,-1129.09,0.00016094,2]
[423577793,1780248639000,-1766.25619342,0.00015901,2]
[423577730,1780248639000,-500.0,0.00015545,2]
[423577795,1780248639000,-168.092411,0.00015946,2]
[423577737,1780248639000,-591.15,0.00015546,2]
[423577731,1780248639000,-500.0,0.00015546,2]
[423577741,1780248639000,-1129.09,0.00015546,2]
[423577743,1780248639000,-500.0,0.00015547,2]
[423577745,1780248639000,-1352.39212201,0.000157,2]
[423577747,1780248639000,-168.092411,0.00015723,2]
[423577749,1780248639000,-1352.39212201,0.000158,2]
[423577751,1780248639000,-500.0,0.00015818,2]
[423577758,1780248639000,-500.0,0.00015819,2]
[423577752,1780248639000,-559.57,0.00015819,2]
[423577762,1780248639000,-500.0,0.00015819,2]
[423577760,1780248639000,-500.0,0.00015819,2]
[423577754,1780248639000,-500.0,0.00015819,2]
[423577728,1780248639000,-500.0,0.00015545,2]
[423577768,1780248639000,-500.0,0.00015819,2]
[423577790,1780248639000,-500.0,0.00015821,2]
[423577784,1780248639000,-591.15,0.0001582,2]
[423577780,1780248639000,-500.0,0.0001582,2]
[423577782,1780248639000,-500.0,0.0001582,2]
[423577788,1780248639000,-1129.09,0.0001582,2]
[423577756,1780248639000,-1028.27,0.00015819,2]
[423577776,1780248639000,-500.0,0.00015819,2]
[423577786,1780248639000,-500.0,0.0001582,2]
[423577774,1780248639000,-501.8787659,0.00015819,2]
[423577770,1780248639000,-500.0,0.00015819,2]
[423577772,1780248639000,-500.0,0.00015819,2]
[423577764,1780248639000,-500.0,0.00015819,2]
[423577766,1780248639000,-500.0,0.00015819,2]
[423577778,1780248639000,-500.0,0.0001582,2]
[423577933,1780248640000,-500.0,0.00016672,2]
[423577931,1780248640000,-500.0,0.00016672,2]
[423577926,1780248640000,-500.0,0.00016672,2]
[423577946,1780248640000,-500.0,0.00016672,2]
[423577938,1780248640000,-500.0,0.00016672,2]
[423577922,1780248640000,-501.13054405,0.00016672,2]
[423577942,1780248640000,-500.0,0.00016672,2]
[423577937,1780248640000,-500.0,0.00016672,2]
[423577935,1780248640000,-552.58,0.00016672,2]
[423577924,1780248640000,-1348.75,0.00016672,2]
[423577928,1780248640000,-500.0,0.00016672,2]
[423577902,1780248640000,-500.0,0.00016641,2]
[423577940,1780248640000,-358.99836784,0.00016672,2]
[423577929,1780248640000,-500.24711162,0.00016672,2]
[423577951,1780248640000,-500.0,0.00016672,2]
[423577949,1780248640000,-500.0,0.00016672,2]
[423577955,1780248640000,-534.45,0.00016672,2]
[423577958,1780248640000,-500.0,0.00016672,2]
[423577947,1780248640000,-500.0,0.00016672,2]
[423577964,1780248640000,-1567.21,0.00016672,2]
[423577962,1780248640000,-500.0,0.00016672,2]
[423577960,1780248640000,-500.0,0.00016672,2]
[423577957,1780248640000,-500.65037781,0.00016672,2]
[423577966,1780248640000,-500.0,0.00016672,2]
[423577953,1780248640000,-500.0,0.00016672,2]
[423577968,1780248640000,-500.0,0.00016672,2]
[423577969,1780248640000,-500.0,0.00016672,2]
[423577915,1780248640000,-500.0,0.00016642,2]
[423577944,1780248640000,-500.0,0.00016672,2]
[423577917,1780248640000,-1448.47969,0.00016659,2]
[423577857,1780248640000,-500.0,0.00016127,2]
[423577911,1780248640000,-591.15,0.00016642,2]
[423577983,1780248640000,-1807.05,0.00016672,2]
[423577864,1780248640000,-277.71993064,0.00016127,2]
[423577863,1780248640000,-500.0,0.00016127,2]
[423577868,1780248640000,-500.0,0.00016366,2]
[423577859,1780248640000,-500.0,0.00016127,2]
[423577866,1780248640000,-168.092411,0.00016169,2]
[423577870,1780248640000,-559.57,0.00016367,2]
[423577861,1780248640000,-500.0,0.00016127,2]
[423577872,1780248640000,-1028.27,0.00016367,2]
[423577873,1780248640000,-500.0,0.00016367,2]
[423577884,1780248640000,-500.0,0.00016368,2]
[423577875,1780248640000,-500.0,0.00016367,2]
[423577895,1780248640000,-553.39,0.0001664,2]
[423577888,1780248640000,-500.0,0.00016368,2]
[423577920,1780248640000,-500.0,0.00016672,2]
[423577877,1780248640000,-500.0,0.00016367,2]
[423577892,1780248640000,-168.092411,0.00016392,2]
[423577897,1780248640000,-559.57,0.00016641,2]
[423577886,1780248640000,-591.15,0.00016368,2]
[423577899,1780248640000,-1028.27,0.00016641,2]
[423577881,1780248640000,-500.0,0.00016368,2]
[423577893,1780248640000,-587.0,0.00016504,2]
[423577883,1780248640000,-500.0,0.00016368,2]
[423577879,1780248640000,-508.96,0.00016367,2]
[423577900,1780248640000,-500.0,0.00016641,2]
[423577905,1780248640000,-500.0,0.00016642,2]
[423577909,1780248640000,-500.0,0.00016642,2]
[423577919,1780248640000,-491.57086385,0.00016672,2]
[423577904,1780248640000,-500.0,0.00016641,2]
[423577907,1780248640000,-500.0,0.00016642,2]
[423577890,1780248640000,-1766.25619342,0.00016374,2]
[423577974,1780248640000,-500.0,0.00016672,2]
[423577987,1780248640000,-500.0,0.00016672,2]
[423577971,1780248640000,-500.0,0.00016672,2]
[423578039,1780248640000,-500.0,0.00016673,2]
[423578044,1780248640000,-500.0,0.00016673,2]
[423578059,1780248640000,-500.0,0.00016673,2]
[423578057,1780248640000,-500.45428502,0.00016673,2]
[423578060,1780248640000,-500.0,0.00016673,2]
[423578062,1780248640000,-501.10554523,0.00016673,2]
[423578064,1780248640000,-500.0,0.00016673,2]
[423578048,1780248640000,-500.0,0.00016673,2]
[423578055,1780248640000,-500.56188273,0.00016673,2]
[423578046,1780248640000,-500.78670103,0.00016673,2]
[423578050,1780248640000,-502.54170318,0.00016673,2]
[423578053,1780248640000,-500.4817354,0.00016673,2]
[423578066,1780248640000,-500.0,0.00016673,2]
[423578068,1780248640000,-500.0,0.00016673,2]
[423578070,1780248640000,-513.85831234,0.00016673,2]
[423578072,1780248640000,-500.0,0.00016673,2]
[423578081,1780248640000,-500.36636841,0.00016673,2]
[423578073,1780248640000,-500.0,0.00016673,2]
[423578085,1780248640000,-500.0,0.00016673,2]
[423578075,1780248640000,-508.10859511,0.00016673,2]
[423578077,1780248640000,-500.0,0.00016673,2]
[423578079,1780248640000,-500.0,0.00016673,2]
[423578083,1780248640000,-486.37710963,0.00016673,2]
[423578087,1780248640000,-501.40480013,0.00016673,2]
[423577975,1780248640000,-500.0,0.00016672,2]
[423578094,1780248640000,-500.0,0.00016673,2]
[423578090,1780248640000,-469.9877498,0.00016673,2]
[423578092,1780248640000,-401.57837001,0.00016673,2]
[423578096,1780248640000,-500.0,0.00016673,2]
[423578041,1780248640000,-500.0,0.00016673,2]
[423578042,1780248640000,-502.8499646,0.00016673,2]
[423578089,1780248640000,-500.95254909,0.00016673,2]
[423578027,1780248640000,-500.75868069,0.00016673,2]
[423578029,1780248640000,-500.0,0.00016673,2]
[423577985,1780248640000,-500.0,0.00016672,2]
[423577977,1780248640000,-500.0,0.00016672,2]
[423577981,1780248640000,-500.0,0.00016672,2]
[423577993,1780248640000,-500.0,0.00016673,2]
[423577991,1780248640000,-500.0,0.00016673,2]
[423577989,1780248640000,-500.0,0.00016673,2]
[423578007,1780248640000,-500.0,0.00016673,2]
[423578004,1780248640000,-501.25082614,0.00016673,2]
[423578006,1780248640000,-2583.348728,0.00016673,2]
[423578000,1780248640000,-459.73859093,0.00016673,2]
[423577996,1780248640000,-500.0,0.00016673,2]
[423578002,1780248640000,-500.0,0.00016673,2]
[423578009,1780248640000,-204.4991,0.00016673,2]
[423577979,1780248640000,-3745.47,0.00016672,2]
[423578013,1780248640000,-412.02867537,0.00016673,2]
[423577994,1780248640000,-500.0,0.00016673,2]
[423578026,1780248640000,-500.0,0.00016673,2]
[423578024,1780248640000,-500.22476499,0.00016673,2]
[423578035,1780248640000,-500.58885613,0.00016673,2]
[423578033,1780248640000,-500.0,0.00016673,2]
[423578031,1780248640000,-500.0,0.00016673,2]
[423578037,1780248640000,-500.0,0.00016673,2]
[423578019,1780248640000,-500.0,0.00016673,2]
[423578011,1780248640000,-500.2135633,0.00016673,2]
[423578021,1780248640000,-279.093778,0.00016673,2]
[423577998,1780248640000,-500.0,0.00016673,2]
[423578023,1780248640000,-500.0,0.00016673,2]
[423578017,1780248640000,-500.0,0.00016673,2]
[423578015,1780248640000,-500.72867244,0.00016673,2]
[423578162,1780248641000,-500.0,0.00016673,2]
[423578159,1780248641000,-536.02666886,0.00016673,2]
[423578164,1780248641000,-279.20290021,0.00016673,2]
[423578161,1780248641000,-500.0,0.00016673,2]
[423578155,1780248641000,-500.0,0.00016673,2]
[423578153,1780248641000,-500.0,0.00016673,2]
[423578157,1780248641000,-500.0,0.00016673,2]
[423578168,1780248641000,-500.0,0.00016673,2]
[423578170,1780248641000,-500.59247305,0.00016673,2]
[423578172,1780248641000,-500.0,0.00016673,2]
[423578151,1780248641000,-500.0,0.00016673,2]
[423578189,1780248641000,-223.804875,0.00016673,2]
[423578174,1780248641000,-500.0,0.00016673,2]
[423578186,1780248641000,-500.0,0.00016673,2]
[423578193,1780248641000,-542.05,0.00016673,2]
[423578191,1780248641000,-500.0,0.00016673,2]
[423578179,1780248641000,-1670.88,0.00016673,2]
[423578177,1780248641000,-500.0,0.00016673,2]
[423578197,1780248641000,-223.804875,0.00016673,2]
[423578176,1780248641000,-500.0,0.00016673,2]
[423578187,1780248641000,-500.0,0.00016673,2]
[423578182,1780248641000,-500.0,0.00016673,2]
[423578166,1780248641000,-603.91,0.00016673,2]
[423578184,1780248641000,-514.19824733,0.00016673,2]
[423578149,1780248641000,-500.0,0.00016673,2]
[423578106,1780248641000,-500.0,0.00016673,2]
[423578134,1780248641000,-500.0,0.00016673,2]
[423578110,1780248641000,-500.0,0.00016673,2]
[423578113,1780248641000,-500.54679965,0.00016673,2]
[423578120,1780248641000,-500.0,0.00016673,2]
[423578117,1780248641000,-500.0,0.00016673,2]
[423578104,1780248641000,-500.0,0.00016673,2]
[423578115,1780248641000,-500.0,0.00016673,2]
[423578112,1780248641000,-500.0,0.00016673,2]
[423578108,1780248641000,-500.79986804,0.00016673,2]
[423578100,1780248641000,-288.74138145,0.00016673,2]
[423578098,1780248641000,-500.0,0.00016673,2]
[423578102,1780248641000,-433.98693246,0.00016673,2]
[423578147,1780248641000,-502.46934796,0.00016673,2]
[423578119,1780248641000,-500.36880453,0.00016673,2]
[423578139,1780248641000,-500.0,0.00016673,2]
[423578135,1780248641000,-500.0,0.00016673,2]
[423578132,1780248641000,-500.0,0.00016673,2]
[423578130,1780248641000,-502.41508264,0.00016673,2]
[423578145,1780248641000,-605.23214264,0.00016673,2]
[423578137,1780248641000,-500.69598762,0.00016673,2]
[423578124,1780248641000,-500.37576945,0.00016673,2]
[423578126,1780248641000,-455.23584896,0.00016673,2]
[423578195,1780248641000,-500.53177417,0.00016673,2]
[423578141,1780248641000,-944.99,0.00016673,2]
[423578143,1780248641000,-500.0,0.00016673,2]
[423578122,1780248641000,-472.88689032,0.00016673,2]
[423578213,1780248641000,-327.892484,0.00016673,2]
[423578248,1780248641000,-513.08139942,0.00016673,2]
[423578211,1780248641000,-500.0,0.00016673,2]
[423578259,1780248641000,-500.0,0.00016673,2]
[423578257,1780248641000,-500.0,0.00016673,2]
[423578250,1780248641000,-500.0,0.00016673,2]
[423578262,1780248641000,-303.145799,0.00016673,2]
[423578265,1780248641000,-596.998347,0.00016673,2]
[423578269,1780248641000,-303.145799,0.00016673,2]
[423578272,1780248641000,-596.998347,0.00016673,2]
[423578275,1780248641000,-303.145799,0.00016673,2]
[423578278,1780248641000,-500.78501323,0.00016673,2]
[423578283,1780248641000,-596.998347,0.00016673,2]
[423578293,1780248641000,-500.81928683,0.00016674,2]
[423578246,1780248641000,-603.85,0.00016673,2]
[423578299,1780248641000,-500.0,0.00016675,2]
[423578291,1780248641000,-151.0,0.00016673,2]
[423578301,1780248641000,-561.00951653,0.00016675,2]
[423578288,1780248641000,-596.998347,0.00016673,2]
[423578304,1780248641000,-500.0,0.00016675,2]
[423578314,1780248641000,-500.14112481,0.00016675,2]
[423578306,1780248641000,-500.27914325,0.00016675,2]
[423578317,1780248641000,-500.0,0.00016675,2]
[423578319,1780248641000,-500.0,0.00016675,2]
[423578311,1780248641000,-500.0,0.00016675,2]
[423578309,1780248641000,-500.0,0.00016675,2]
[423578201,1780248641000,-223.804875,0.00016673,2]
[423578285,1780248641000,-303.145799,0.00016673,2]
[423578254,1780248641000,-500.0,0.00016673,2]
[423578296,1780248641000,-364.56559259,0.00016674,2]
[423578244,1780248641000,-500.08013511,0.00016673,2]
[423578242,1780248641000,-500.0,0.00016673,2]
[423578202,1780248641000,-500.0,0.00016673,2]
[423578215,1780248641000,-500.0,0.00016673,2]
[423578199,1780248641000,-223.804875,0.00016673,2]
[423578200,1780248641000,-500.29802778,0.00016673,2]
[423578205,1780248641000,-500.0,0.00016673,2]
[423578206,1780248641000,-500.0,0.00016673,2]
[423578203,1780248641000,-500.74146199,0.00016673,2]
[423578207,1780248641000,-327.892484,0.00016673,2]
[423578204,1780248641000,-500.0,0.00016673,2]
[423578208,1780248641000,-327.892484,0.00016673,2]
[423578218,1780248641000,-327.892484,0.00016673,2]
[423578209,1780248641000,-500.0,0.00016673,2]
[423578240,1780248641000,-193.20216811,0.00016673,2]
[423578217,1780248641000,-817.3533,0.00016673,2]
[423578238,1780248641000,-509.96573237,0.00016673,2]
[423578236,1780248641000,-500.07914957,0.00016673,2]
[423578224,1780248641000,-572.53,0.00016673,2]
[423578234,1780248641000,-500.72295628,0.00016673,2]
[423578232,1780248641000,-500.0,0.00016673,2]
[423578222,1780248641000,-500.0,0.00016673,2]
[423578221,1780248641000,-500.0,0.00016673,2]
[423578226,1780248641000,-500.0,0.00016673,2]
[423578228,1780248641000,-500.0,0.00016673,2]
[423578230,1780248641000,-501.94145204,0.00016673,2]
[423578410,1780248642000,-506.19120557,0.00016946,2]
[423578412,1780248642000,-500.0,0.00016946,2]
[423578403,1780248642000,-500.0,0.00016946,2]
[423578408,1780248642000,-534.45,0.00016946,2]
[423578406,1780248642000,-500.0,0.00016946,2]
[423578389,1780248642000,-500.0,0.00016946,2]
[423578398,1780248642000,-500.0,0.00016946,2]
[423578394,1780248642000,-500.0,0.00016946,2]
[423578396,1780248642000,-500.0,0.00016946,2]
[423578391,1780248642000,-500.29632895,0.00016946,2]
[423578401,1780248642000,-500.0,0.00016946,2]
[423578400,1780248642000,-500.0,0.00016946,2]
[423578414,1780248642000,-500.0,0.00016946,2]
[423578437,1780248642000,-1807.05,0.00016946,2]
[423578438,1780248642000,-500.0,0.00016946,2]
[423578420,1780248642000,-500.0,0.00016946,2]
[423578435,1780248642000,-503.59293416,0.00016946,2]
[423578426,1780248642000,-500.0,0.00016946,2]
[423578442,1780248642000,-500.0,0.00016947,2]
[423578424,1780248642000,-500.0,0.00016946,2]
[423578428,1780248642000,-503.38832005,0.00016946,2]
[423578440,1780248642000,-500.0,0.00016946,2]
[423578418,1780248642000,-500.0,0.00016946,2]
[423578430,1780248642000,-500.0,0.00016946,2]
[423578432,1780248642000,-3745.47,0.00016946,2]
[423578383,1780248642000,-500.0,0.00016946,2]
[423578416,1780248642000,-1567.21,0.00016946,2]
[423578375,1780248642000,-151.0,0.00016946,2]
[423578328,1780248642000,-502.94203968,0.00016675,2]
[423578385,1780248642000,-500.0,0.00016946,2]
[423578322,1780248642000,-500.0,0.00016675,2]
[423578325,1780248642000,-500.0,0.00016675,2]
[423578444,1780248642000,-500.0,0.00016947,2]
[423578338,1780248642000,-596.998347,0.00016675,2]
[423578336,1780248642000,-303.145799,0.00016675,2]
[423578342,1780248642000,-596.998347,0.00016675,2]
[423578341,1780248642000,-303.145799,0.00016675,2]
[423578331,1780248642000,-303.145799,0.00016675,2]
[423578333,1780248642000,-596.998347,0.00016675,2]
[423578358,1780248642000,-625.84,0.00016915,2]
[423578360,1780248642000,-500.0,0.00016915,2]
[423578354,1780248642000,-1028.27,0.00016915,2]
[423578362,1780248642000,-500.0,0.00016916,2]
[423578345,1780248642000,-303.145799,0.00016675,2]
[423578350,1780248642000,-1766.25619342,0.00016847,2]
[423578349,1780248642000,-151.0,0.00016675,2]
[423578356,1780248642000,-500.0,0.00016915,2]
[423578352,1780248642000,-559.57,0.00016915,2]
[423578347,1780248642000,-596.998347,0.00016675,2]
[423578364,1780248642000,-500.0,0.00016916,2]
[423578366,1780248642000,-500.0,0.00016916,2]
[423578387,1780248642000,-552.58,0.00016946,2]
[423578371,1780248642000,-500.0,0.00016916,2]
[423578373,1780248642000,-151.0,0.00016946,2]
[423578379,1780248642000,-1348.75,0.00016946,2]
[423578381,1780248642000,-500.0,0.00016946,2]
[423578368,1780248642000,-591.15,0.00016916,2]
[423578377,1780248642000,-500.0,0.00016946,2]
[423578446,1780248642000,-500.0,0.00016947,2]
[423578423,1780248642000,-381.30832866,0.00016946,2]
[423578456,1780248642000,-500.0,0.00016947,2]
[423578513,1780248642000,-500.0,0.00016947,2]
[423578521,1780248642000,-500.54883908,0.00016947,2]
[423578515,1780248642000,-500.0,0.00016947,2]
[423578517,1780248642000,-500.0,0.00016947,2]
[423578525,1780248642000,-500.0,0.00016947,2]
[423578535,1780248642000,-944.99,0.00016947,2]
[423578523,1780248642000,-500.0,0.00016947,2]
[423578539,1780248642000,-500.0,0.00016947,2]
[423578537,1780248642000,-500.0,0.00016947,2]
[423578541,1780248642000,-500.0,0.00016947,2]
[423578533,1780248642000,-500.0,0.00016947,2]
[423578543,1780248642000,-500.0,0.00016947,2]
[423578527,1780248642000,-500.0,0.00016947,2]
[423578529,1780248642000,-500.0,0.00016947,2]
[423578547,1780248642000,-500.0,0.00016947,2]
[423578545,1780248642000,-500.0,0.00016947,2]
[423578568,1780248642000,-500.0,0.00016947,2]
[423578549,1780248642000,-201.10236473,0.00016947,2]
[423578551,1780248642000,-500.0,0.00016947,2]
[423578566,1780248642000,-1670.88,0.00016947,2]
[423578553,1780248642000,-603.91,0.00016947,2]
[423578562,1780248642000,-500.0,0.00016947,2]
[423578564,1780248642000,-500.0,0.00016947,2]
[423578559,1780248642000,-500.0,0.00016947,2]
[423578556,1780248642000,-500.0,0.00016947,2]
[423578570,1780248642000,-500.0,0.00016947,2]
[423578454,1780248642000,-2583.348728,0.00016947,2]
[423578519,1780248642000,-500.0,0.00016947,2]
[423578511,1780248642000,-151.0,0.00016947,2]
[423578531,1780248642000,-501.33459395,0.00016947,2]
[423578505,1780248642000,-500.0,0.00016947,2]
[423578509,1780248642000,-151.0,0.00016947,2]
[423578458,1780248642000,-500.0,0.00016947,2]
[423578448,1780248642000,-500.0,0.00016947,2]
[423578450,1780248642000,-500.0,0.00016947,2]
[423578460,1780248642000,-500.0,0.00016947,2]
[423578452,1780248642000,-500.0,0.00016947,2]
[423578464,1780248642000,-500.0,0.00016947,2]
[423578466,1780248642000,-500.0,0.00016947,2]
[423578468,1780248642000,-500.0,0.00016947,2]
[423578470,1780248642000,-500.0,0.00016947,2]
[423578472,1780248642000,-500.0,0.00016947,2]
[423578474,1780248642000,-500.0,0.00016947,2]
[423578476,1780248642000,-500.0,0.00016947,2]
[423578484,1780248642000,-500.0,0.00016947,2]
[423578462,1780248642000,-279.093778,0.00016947,2]
[423578499,1780248642000,-151.0,0.00016947,2]
[423578482,1780248642000,-500.0,0.00016947,2]
[423578497,1780248642000,-151.0,0.00016947,2]
[423578507,1780248642000,-151.0,0.00016947,2]
[423578501,1780248642000,-151.0,0.00016947,2]
[423578491,1780248642000,-500.0,0.00016947,2]
[423578495,1780248642000,-500.0,0.00016947,2]
[423578478,1780248642000,-500.0,0.00016947,2]
[423578486,1780248642000,-500.0,0.00016947,2]
[423578480,1780248642000,-500.0,0.00016947,2]
[423578489,1780248642000,-151.0,0.00016947,2]
[423578487,1780248642000,-151.0,0.00016947,2]
[423578493,1780248642000,-151.0,0.00016947,2]
[423578652,1780248643000,-500.0,0.00016949,2]
[423578666,1780248643000,-500.0,0.0001719,2]
[423578656,1780248643000,-151.0,0.00016949,2]
[423578653,1780248643000,-500.0,0.00016949,2]
[423578650,1780248643000,-500.0,0.00016949,2]
[423578631,1780248643000,-596.998347,0.00016947,2]
[423578648,1780248643000,-151.0,0.00016948,2]
[423578637,1780248643000,-303.145799,0.00016947,2]
[423578644,1780248643000,-268.790054,0.00016947,2]
[423578646,1780248643000,-151.0,0.00016948,2]
[423578667,1780248643000,-591.15,0.0001719,2]
[423578633,1780248643000,-303.145799,0.00016947,2]
[423578635,1780248643000,-596.998347,0.00016947,2]
[423578657,1780248643000,-185.421944,0.00016949,2]
[423578662,1780248643000,-500.0,0.00017189,2]